bitfinex/quotes_SOLUSD_20260201
["timestamp","ask_amount","ask_price","bid_price","bid_amount"]
[1769957507003,18.47216769,103.29,103.23,52.73606162]
[1769957507584,28.15379106,103.29,103.23,52.73606162]
[1769957507783,18.47216769,103.31,103.25,18.83167255]
[1769957508000,14.40597741,103.3,103.25,4.42569514]
[1769957508211,18.47216769,103.28,103.23,14.40597741]
[1769957508389,18.47216769,103.28,103.22,18.83167255]
[1769957508587,4.06619028,103.28,103.23,18.83167255]
[1769957508787,28.15492182,103.28,103.23,4.42569514]
[1769957508983,18.47216769,103.28,103.23,18.83167255]
[1769957509201,13.74866687,103.28,103.23,18.83167255]
[1769957509507,28.15464428,103.28,103.22,18.83167255]
[1769957510185,18.47216769,103.27,103.2,4.42569514]
[1769957510399,28.15405522,103.29,103.23,18.83167255]
[1769957510710,4.06619028,103.28,103.24,9.68616815]
[1769957510922,28.15466757,103.28,103.23,28.51868936]
[1769957511089,28.15466757,103.28,103.23,14.11271195]
[1769957511290,18.47216769,103.28,103.23,14.11271195]
[1769957511605,13.74861385,103.28,103.23,14.40597741]
[1769957511985,28.15459126,103.28,103.23,9.68694383]
[1769957512503,13.08398276,103.26,103.2,24.22328762]
[1769957512706,4.06619028,103.25,103.2,4.42569514]
[1769957512885,13.08398276,103.25,103.2,14.11519045]
[1769957513090,13.08398276,103.25,103.2,23.13298293]
[1769957513285,4.06619028,103.23,103.19,9.69041333]
[1769957513590,4.06619028,103.23,103.2,9.68991517]
[1769957513789,4.06619028,103.23,103.19,9.69042274]
[1769957513999,13.08398276,103.23,103.19,9.69042274]
[1769957514310,4.06619028,103.23,103.19,9.69060356]
[1769957514513,9.01779248,103.24,103.16,4.42569514]
[1769957514514,18.54472613,103.21,103.16,4.42569514]
[1769957514806,4.06619028,103.22,103.17,18.90423099]
[1769957515010,18.54472613,103.22,103.17,18.90423099]
[1769957515194,14.47853585,103.22,103.16,4.42569514]
[1769957515398,14.47853585,103.22,103.16,18.90423099]
[1769957515597,4.06619028,103.23,103.18,4.42569514]
[1769957515790,4.06619028,103.23,103.18,18.90423099]
[1769957515991,4.06619028,103.23,103.19,14.47853585]
[1769957516309,26.9,103.26,103.21,18.90423099]
[1769957516639,36.5847852,103.26,103.21,28.5926677]
[1769957517111,26.9,103.26,103.23,4.42569514]
[1769957517404,14.47853585,103.27,103.23,4.42569514]
[1769957517617,14.47853585,103.25,103.2,9.68940364]
[1769957517832,14.47853585,103.25,103.21,9.68888552]
[1769957518117,18.54472613,103.25,103.21,9.68888552]
[1769957518285,18.54472613,103.25,103.2,9.68946229]
[1769957518484,18.54472613,103.24,103.19,4.42569514]
[1769957518709,28.2310484,103.24,103.2,9.68939928]
[1769957519409,4.06619028,103.24,103.19,38.34325451]
[1769957519600,28.23093401,103.24,103.19,14.11610072]
[1769957520104,52.44635438,103.24,103.19,4.42569514]
[1769957520298,9.68559005,103.25,103.2,18.90423099]
[1769957520690,24.1641259,103.25,103.21,9.68898362]
[1769957520890,51.06233361,103.27,103.22,4.42569514]
[1769957521208,18.54472613,103.26,103.21,9.68898362]
[1769957521596,14.47853585,103.24,103.19,14.47853585]
[1769957521799,4.06619028,103.21,103.17,9.69230991]
[1769957521990,4.06619028,103.23,103.17,4.42569514]
[1769957522186,18.54472613,103.22,103.17,4.42569514]
[1769957522399,18.54472613,103.21,103.16,9.69276446]
[1769957522695,36.53613273,103.26,103.14,26.9]
[1769957522696,18.54472613,103.19,103.14,9.69555943]
[1769957523004,18.54472613,103.19,103.13,28.66518026]
[1769957523005,18.54472613,103.17,103.13,9.69613315]
[1769957523393,4.06619028,103.17,103.11,4.74390624]
[1769957523614,14.47853585,103.14,103.11,0.3182111]
[1769957523909,4.06619028,103.15,103.11,0.3182111]
[1769957524109,18.54472613,103.15,103.11,10.01629121]
[1769957524304,14.47853585,103.14,103.11,0.3182111]
[1769957524616,4.06619028,103.11,103.05,9.7034672]
[1769957524821,14.47853585,103.08,103.03,14.1312245]
[1769957525107,4.06619028,103.08,103.03,28.60976035]
[1769957525309,18.54472613,103.08,103.03,14.1312245]
[1769957525511,18.54472613,103.06,103.01,18.90423099]
[1769957525811,14.47853585,103.03,102.99,4.42569514]
[1769957526002,4.06619028,103.04,102.98,14.67853585]
[1769957526203,18.54472613,103.06,103.0,18.90423099]
[1769957526410,4.06619028,103.08,103.02,14.13243513]
[1769957526706,13.77021745,103.05,103.0,4.42569514]
[1769957526888,14.47853585,103.04,103.0,4.42569514]
[1769957527092,28.2487533,103.05,103.0,4.42569514]
[1769957527305,14.47853585,103.01,102.98,0.2]
[1769957527512,14.47853585,103.02,102.98,0.2]
[1769957527722,14.47853585,103.01,102.98,0.2]
[1769957527895,14.47853585,102.99,102.95,0.09751499]
[1769957528097,14.47853585,102.98,102.95,0.09751499]
[1769957528605,4.25215186,103.03,102.96,4.40165842]
[1769957528814,52.69807901,103.04,102.98,18.88019427]
[1769957529000,52.69807901,103.04,102.94,4.47527085]
[1769957529001,14.47853585,102.98,102.94,1e-08]
[1769957529809,14.47853585,102.96,102.94,1e-08]
[1769957530010,4.27527085,103.01,102.94,1e-08]
[1769957530011,4.25215186,102.98,102.94,1e-08]
[1769957530203,4.25215186,103.0,102.94,14.11588807]
[1769957530516,14.47853585,102.99,102.94,14.11588807]
[1769957530896,24.18832992,102.99,102.94,14.11588807]
[1769957531092,14.47853585,103.01,102.95,4.40165842]
[1769957531801,18.73068771,103.01,102.95,4.40165842]
[1769957532109,24.18604528,103.02,102.96,4.40165842]
[1769957532309,28.43592353,103.04,102.98,4.40165842]
[1769957532610,13.95738768,103.04,102.98,4.40165842]
[1769957532907,13.95738768,103.04,102.98,14.11139472]
[1769957532908,18.73068771,103.04,102.98,14.11139472]
[1769957533112,18.73068771,103.06,103.01,4.40165842]
[1769957533414,14.47853585,103.02,102.97,9.71125036]
[1769957533597,14.47853585,103.01,102.97,4.40165842]
[1769957533798,14.47853585,103.03,102.97,4.40165842]
[1769957534007,18.73068771,103.04,102.99,4.40165842]
[1769957534200,14.47853585,103.05,102.99,4.40165842]
[1769957534614,18.73068771,103.06,103.0,4.40165842]
[1769957534915,28.4338698,103.06,103.01,9.70779535]
[1769957535111,18.73068771,103.06,103.01,14.10945377]
[1769957535312,4.25215186,103.06,103.01,14.10945377]
[1769957535520,14.47853585,103.07,103.01,38.37894216]
[1769957535706,4.25215186,103.07,103.01,9.70779535]
[1769957535911,14.47853585,103.06,103.01,14.10945377]
[1769957536097,18.73068771,103.07,103.02,4.40165842]
[1769957537211,18.73068771,103.07,103.02,14.10769673]
[1769957537527,28.43326855,103.07,103.02,14.10769673]
[1769957537913,18.73068771,103.06,103.01,9.7076702]
[1769957538121,14.47853585,103.06,103.02,14.10835831]
[1769957538424,14.47853585,103.06,103.01,14.10920203]
[1769957538622,14.47853585,103.06,103.02,14.10840702]
[1769957538918,14.47853585,103.08,103.03,4.40165842]
[1769957539100,28.43214007,103.08,103.03,4.40165842]
[1769957539300,14.47853585,103.06,103.03,14.10748206]
[1769957539898,14.47853585,103.06,103.0,14.47853585]
[1769957539899,18.73068771,103.07,103.01,4.40165842]
[1769957540202,18.73068771,103.07,103.01,28.66954061]
[1769957541223,14.47853585,103.06,103.02,9.70685303]
[1769957541730,14.47853585,103.06,103.01,14.10929322]
[1769957542032,14.47853585,103.05,103.01,14.10929322]
[1769957542428,14.47853585,103.04,103.01,9.7076348]
[1769957542623,18.73068771,103.05,103.01,9.7076348]
[1769957543006,14.47853585,103.04,103.0,14.11035158]
[1769957543319,14.47853585,103.03,102.99,9.70946434]
[1769957543525,14.47853585,103.02,102.98,41.05140519]
[1769957543702,14.47853585,103.02,102.98,31.34165842]
[1769957544106,18.73068771,103.02,102.98,26.94]
[1769957544327,14.47853585,103.01,102.98,26.94]
[1769957544511,14.54261526,103.01,102.97,4.40165842]
[1769957544822,13.95751326,103.04,102.97,4.40165842]
[1769957545020,14.54261526,103.02,102.99,9.70906587]
[1769957545222,14.54261526,103.02,102.98,14.11228184]
[1769957545822,18.79476712,103.01,102.97,9.71142369]
[1769957546524,14.54261526,103.0,102.97,9.71142369]
[1769957546825,14.54261526,103.0,102.96,14.11329124]
[1769957547127,14.54261526,102.98,102.95,9.71330913]
[1769957547305,14.54261526,102.99,102.95,9.71330913]
[1769957547509,14.54261526,102.96,102.94,1e-08]
[1769957547721,14.54261526,102.97,102.94,1e-08]
[1769957547921,4.25215186,103.0,102.94,14.116003]
[1769957548225,14.54261526,103.01,102.95,4.40165842]
[1769957548825,14.54261526,103.0,102.95,4.40165842]
[1769957549212,14.54261526,103.0,102.96,38.39544241]
[1769957549406,14.54261526,103.02,102.97,4.40165842]
[1769957549606,14.54261526,103.03,102.97,4.40165842]
[1769957549908,14.54261526,103.02,102.97,4.40165842]
[1769957550520,18.79476712,103.02,102.97,4.40165842]
[1769957551331,4.25215186,103.04,102.99,4.40165842]
[1769957551516,14.54261526,103.05,102.99,4.40165842]
[1769957551715,18.79476712,103.06,103.0,4.40165842]
[1769957551926,14.54261526,103.04,103.0,4.40165842]
[1769957552330,14.54261526,103.03,102.98,33.98718197]
[1769957552632,14.54261526,103.01,102.97,31.36165842]
[1769957552930,14.54261526,103.03,102.98,4.40165842]
[1769957553110,18.79476712,103.03,102.98,4.40165842]
[1769957553317,24.25041061,103.01,102.97,36.67155602]
[1769957553539,14.54261526,102.98,102.94,1e-08]
[1769957553837,14.54261526,102.99,102.96,9.71246595]
[1769957554141,14.54261526,102.99,102.95,9.71305394]
[1769957554319,14.54261526,102.99,102.96,9.71236305]
[1769957554520,14.54261526,103.01,102.97,14.11285294]
[1769957554713,18.79476712,103.02,102.98,4.40165842]
[1769957554932,14.54261526,103.03,102.98,4.40165842]
[1769957555349,24.24860528,103.03,102.99,9.70968055]
[1769957555631,9.70599002,103.03,102.99,9.70968055]
[1769957556023,24.24860528,103.03,102.99,9.70968055]
[1769957556335,24.2618611,103.05,102.99,9.70968055]
[1769957556336,4.25215186,103.06,103.0,4.40165842]
[1769957556518,4.25215186,103.1,103.03,4.40165842]
[1769957556717,13.95150171,103.1,103.04,4.40165842]
[1769957557131,4.25215186,103.1,103.05,4.40165842]
[1769957557434,24.24452363,103.12,103.01,31.23527085]
[1769957557435,23.01842582,103.11,103.06,13.96906925]
[1769957557638,4.26018144,103.11,103.06,38.2267832]
[1769957557815,18.75731804,103.12,103.07,4.26598367]
[1769957558017,23.01624193,103.13,103.07,4.26598367]
[1769957558316,9.69569047,103.14,103.09,4.26598367]
[1769957558612,9.05930302,103.14,103.09,4.26598367]
[1769957558818,23.01447134,103.15,103.09,4.26598367]
[1769957559152,13.31948446,103.14,103.09,4.26598367]
[1769957559319,33.93153559,103.15,103.1,9.69932104]
[1769957559320,23.01447134,103.15,103.1,9.69932104]
[1769957559715,13.31948446,103.15,103.1,13.96530471]
[1769957560127,9.05930302,103.14,103.1,9.69932104]
[1769957560326,4.26018144,103.15,103.1,38.21360732]
[1769957561227,9.05930302,103.14,103.1,13.96530471]
[1769957561427,13.31948446,103.15,103.1,13.96530471]
[1769957561624,13.31948446,103.14,103.1,9.69932104]
[1769957561821,13.31948446,103.13,103.09,9.6998529]
[1769957562022,9.05930302,103.12,103.08,13.96694123]
[1769957562828,13.31948446,103.12,103.07,9.70185473]
[1769957563029,13.31948446,103.09,103.05,9.70402717]
[1769957563231,13.31948446,103.09,103.05,33.96409509]
[1769957563632,13.31948446,103.11,103.06,4.26598367]
[1769957564143,4.26018144,103.11,103.06,4.26598367]
[1769957564337,23.01787723,103.11,103.06,4.26598367]
[1769957564542,4.26018144,103.11,103.06,4.26598367]
[1769957564842,4.26018144,103.11,103.06,13.32528669]
[1769957566240,4.26018144,103.11,103.07,9.70214417]
[1769957566241,13.95866874,103.11,103.07,9.70214417]
[1769957566424,23.01797176,103.11,103.07,9.70214417]
[1769957566740,23.01797176,103.11,103.06,13.96864413]
[1769957567143,4.26018144,103.11,103.06,47.2856611]
[1769957567438,13.31948446,103.11,103.06,13.96864413]
[1769957568337,22.82322798,103.13,103.08,9.70120294]
[1769957568549,13.12664807,103.12,103.07,14.17987669]
[1769957568723,9.05930302,103.12,103.08,4.47805413]
[1769957569047,22.82258962,103.14,103.08,13.53735715]
[1769957570041,4.06734505,103.16,103.11,4.47805413]
[1769957570235,22.82144458,103.15,103.1,9.69932104]
[1769957570834,4.06734505,103.14,103.09,14.177869]
[1769957571044,13.12664807,103.13,103.08,14.178677]
[1769957571241,13.12664807,103.13,103.09,9.70004952]
[1769957571843,4.06734505,103.13,103.09,9.70004952]
[1769957572045,4.06734505,103.13,103.09,33.95070428]
[1769957572232,4.06734505,103.13,103.09,9.70004952]
[1769957572835,4.06734505,103.11,103.06,31.41805413]
[1769957573045,4.06734505,103.1,103.06,9.70259518]
[1769957573348,13.12664807,103.1,103.06,9.70259518]
[1769957573550,4.06734505,103.1,103.06,9.70259518]
[1769957573742,4.06734505,103.1,103.07,9.70196947]
[1769957574335,4.06734505,103.12,103.07,4.47805413]
[1769957574850,4.06734505,103.14,103.09,13.53735715]
[1769957575939,4.06734505,103.16,103.1,13.53735715]
[1769957576146,13.12664807,103.15,103.1,4.47805413]
[1769957576341,4.06734505,103.15,103.1,13.53735715]
[1769957576847,18.75307763,103.16,103.11,9.69838037]
[1769957577026,9.69377461,103.16,103.11,14.1764345]
[1769957577228,22.82042268,103.16,103.11,38.42238542]
[1769957577660,22.82042268,103.16,103.11,14.1764345]
[1769957578341,4.06734505,103.16,103.11,14.1764345]
[1769957578744,0.1,103.17,103.12,4.47805413]
[1769957578950,0.1,103.17,103.14,4.47805413]
[1769957579128,1e-08,103.17,103.14,13.53735715]
[1769957579333,1e-08,103.17,103.15,13.53735715]
[1769957579546,1e-08,103.17,103.14,9.05930302]
[1769957580037,1e-08,103.17,103.15,13.53735715]
[1769957580559,1e-08,103.17,103.15,4.47805413]
[1769957580756,1e-08,103.17,103.16,9.69367972]
[1769957581060,1e-08,103.17,103.16,14.17173385]
[1769957581358,4.06734505,103.16,103.1,13.53735715]
[1769957581555,4.06734505,103.16,103.12,9.69732057]
[1769957581735,4.06734505,103.15,103.1,4.47805413]
[1769957581942,4.06734505,103.15,103.1,13.53735715]
[1769957582137,13.12664808,103.17,103.11,13.53735715]
[1769957582350,4.06734505,103.16,103.11,4.47805413]
[1769957582552,13.12664807,103.13,103.09,4.47805413]
[1769957582855,22.82365069,103.13,103.08,9.70087639]
[1769957583054,4.06734505,103.12,103.08,9.70087639]
[1769957583257,13.12664807,103.14,103.08,47.49124091]
[1769957583452,13.76242874,103.15,103.1,4.47805413]
[1769957583644,13.12664807,103.15,103.1,4.47805413]
[1769957583846,13.12664807,103.16,103.11,4.47805413]
[1769957584254,4.06734505,103.16,103.11,4.47805413]
[1769957584460,13.12664808,103.17,103.12,4.47805413]
[1769957584752,13.12664808,103.17,103.1,4.47805413]
[1769957584753,9.05930302,103.15,103.1,4.47805413]
[1769957584962,22.82201615,103.15,103.1,14.17678717]
[1769957585466,13.12664807,103.14,103.1,14.17678717]
[1769957585658,13.12664807,103.14,103.1,4.47805413]
[1769957585855,13.12664807,103.14,103.1,14.17727705]
[1769957586461,13.12664807,103.14,103.1,9.69922292]
[1769957586764,9.05930302,103.13,103.09,9.70024131]
[1769957586964,18.75593287,103.13,103.09,9.70024131]
[1769957587551,22.8226386,103.14,103.09,9.70024131]
[1769957588656,22.8226386,103.14,103.09,13.78845311]
[1769957589253,13.39979364,103.13,103.08,36.64076803]
[1769957589464,13.39979364,103.11,103.01,4.0882118]
[1769957589759,9.05930302,103.05,103.0,4.0882118]
[1769957589979,35.99930302,103.11,103.02,4.0882118]
[1769957589980,9.05930302,103.06,103.02,4.0882118]
[1769957590151,4.34049062,103.09,103.02,4.0882118]
[1769957590351,9.05930302,103.08,103.02,4.0882118]
[1769957590551,9.05930302,103.07,103.02,4.0882118]
[1769957591264,18.76243082,103.06,103.02,13.79493637]
[1769957591568,18.76243082,103.06,103.02,4.0882118]
[1769957592069,9.70249,103.07,103.02,4.0882118]
[1769957592273,9.05930302,103.03,102.99,13.79746182]
[1769957592452,9.05930302,103.04,103.0,9.70862345]
[1769957592653,9.05930302,103.05,103.01,13.79588285]
[1769957592848,9.05930302,103.06,103.02,9.70677485]
[1769957593150,18.76179302,103.07,103.02,13.79498665]
[1769957593550,18.76179302,103.07,103.03,4.0882118]
[1769957594468,9.70249,103.07,103.03,4.0882118]
[1769957594649,9.05930302,103.1,103.04,9.05930302]
[1769957594853,9.05930302,103.08,103.03,4.0882118]
[1769957595050,9.05930302,103.1,103.05,4.0882118]
[1769957595270,18.75889477,103.1,103.05,13.79133036]
[1769957595651,9.05930302,103.1,103.06,4.0882118]
[1769957596283,9.05930302,103.09,103.05,9.70311856]
[1769957596454,9.05930302,103.08,103.04,13.79311231]
[1769957597557,18.76057738,103.08,103.04,4.0882118]
[1769957597760,18.76057738,103.08,103.04,13.79299701]
[1769957598154,13.39979364,103.1,103.04,18.76408823]
[1769957598356,33.30427782,103.12,103.07,4.0882118]
[1769957598982,9.05930302,103.12,103.07,13.14751482]
[1769957599184,9.05930302,103.12,103.07,4.0882118]
[1769957599360,9.69608034,103.14,103.1,13.78753284]
[1769957599572,23.09464567,103.15,103.1,13.78753284]
[1769957600674,45.69334794,103.16,103.11,4.0882118]
[1769957600874,45.69334794,103.16,103.11,13.14751482]
[1769957600875,18.75334794,103.16,103.11,13.14751482]
[1769957601461,23.09278827,103.17,103.12,13.78565167]
[1769957602079,14.03348525,103.17,103.12,13.78565167]
[1769957602277,1e-08,103.17,103.13,4.0882118]
[1769957602563,1e-08,103.17,103.13,13.14751482]
[1769957602769,1e-08,103.17,103.14,4.0882118]
[1769957603466,1e-08,103.17,103.14,13.78311028]
[1769957603666,1e-08,103.17,103.14,13.78376731]
[1769957603982,9.05930302,103.16,103.12,4.0882118]
[1769957604188,9.05930302,103.15,103.1,13.78714986]
[1769957604368,9.04083057,103.15,103.1,13.78714986]
[1769957604573,9.04083057,103.15,103.1,13.78702492]
[1769957605485,18.73639,103.14,103.11,4.0882118]
[1769957605786,18.73568294,103.15,103.1,4.0882118]
[1769957605984,4.34049062,103.16,103.11,4.0882118]
[1769957606176,18.7339333,103.17,103.12,4.0882118]
[1769957606585,18.7339333,103.17,103.11,9.04083057]
[1769957606586,1e-08,103.17,103.15,4.0882118]
[1769957606891,1e-08,103.17,103.15,13.12904237]
[1769957607087,1e-08,103.17,103.16,4.0882118]
[1769957607988,6.29367959,103.17,103.13,9.69614139]
[1769957608184,1e-08,103.17,103.14,9.69537501]
[1769957608579,1e-08,103.17,103.13,13.78429909]
[1769957608783,9.04083058,103.17,103.13,13.78429909]
[1769957609178,1e-08,103.17,103.14,9.69539206]
[1769957609380,1e-08,103.17,103.15,9.69430048]
[1769957609583,1e-08,103.17,103.14,13.78330736]
[1769957610192,1e-08,103.17,103.14,47.06303651]
[1769957610490,1e-08,103.17,103.15,4.0882118]
[1769957611990,6.29423631,103.16,103.13,13.7845077]
[1769957612190,1e-08,103.17,103.13,13.7845077]
[1769957612391,9.04083057,103.16,103.12,9.69691995]
[1769957613092,13.3813212,103.17,103.12,13.78513175]
[1769957613472,9.04083057,103.16,103.12,13.78513175]
[1769957614287,23.07421688,103.17,103.12,38.02873143]
[1769957614492,9.04083057,103.16,103.12,13.78513175]
[1769957614670,14.03338631,103.17,103.1,33.28806282]
[1769957614671,9.04083057,103.15,103.1,4.0882118]
[1769957614868,9.04083057,103.15,103.11,9.6978835]
[1769957615071,4.29708571,103.14,103.11,9.28330616]
[1769957615272,9.04083057,103.12,103.08,9.70070872]
[1769957615472,9.04083057,103.11,103.08,4.0882118]
[1769957615975,9.04083057,103.12,103.08,13.78935423]
[1769957616179,18.73768321,103.13,103.09,4.0882118]
[1769957616405,9.04083057,103.14,103.1,4.0882118]
[1769957616608,26.92,103.16,103.11,4.0882118]
[1769957616609,9.04083057,103.16,103.11,4.0882118]
[1769957617092,1e-08,103.17,103.13,4.0882118]
[1769957617394,9.04083057,103.15,103.11,4.0882118]
[1769957617607,18.73373145,103.17,103.12,4.31039157]
[1769957618291,18.73373145,103.17,103.12,9.69677114]
[1769957618493,18.73373145,103.17,103.13,4.31039157]
[1769957619272,9.04083057,103.16,103.11,4.31039157]
[1769957619472,9.04083057,103.15,103.11,4.31039157]
[1769957620096,9.04083057,103.14,103.1,9.69886576]
[1769957620297,18.73591324,103.15,103.1,14.00925733]
[1769957620600,9.04083057,103.15,103.1,38.25755994]
[1769957621197,18.7357319,103.15,103.1,14.00925733]
[1769957621393,9.04083057,103.13,103.08,31.23039157]
[1769957621579,9.04083057,103.12,103.08,14.01108427]
[1769957622290,33.93145004,103.15,103.06,4.31039157]
[1769957622291,18.74015161,103.1,103.06,4.31039157]
[1769957622493,9.04083057,103.09,103.05,14.0139245]
[1769957622795,9.04083057,103.08,103.04,14.01482686]
[1769957622998,9.04083057,103.09,103.04,14.01482686]
[1769957624192,9.70120294,103.08,103.04,14.01482686]
[1769957624489,33.93445801,103.14,103.08,4.14113662]
[1769957624698,9.04083057,103.13,103.08,4.14113662]
[1769957624874,13.20219335,103.12,103.06,13.18196719]
[1769957625070,13.20219335,103.11,103.06,4.14113662]
[1769957625294,9.04083057,103.09,103.04,22.88640248]
[1769957625678,13.20219335,103.1,103.05,4.14113662]
[1769957625875,9.04083057,103.11,103.05,13.18196719]
[1769957626185,9.04083057,103.11,103.06,4.14113662]
[1769957626606,18.73964527,103.11,103.06,13.84354736]
[1769957627391,9.04083057,103.14,103.09,4.14113662]
[1769957627593,9.04083057,103.1,103.05,4.14113662]
[1769957627987,9.04083057,103.12,103.07,4.14113662]
[1769957628387,9.04083057,103.09,103.05,9.70390118]
[1769957628700,22.90159461,103.1,103.05,13.84516379]
[1769957632289,9.04083057,103.09,103.05,13.84516379]
[1769957632492,18.74023183,103.1,103.06,4.14113662]
[1769957632699,18.74023183,103.1,103.05,9.70402717]
[1769957632894,9.04083057,103.09,103.05,38.10523171]
[1769957633098,9.04083057,103.1,103.06,4.14113662]
[1769957633597,22.90073739,103.11,103.06,4.14113662]
[1769957633803,18.73937461,103.11,103.06,4.14113662]
[1769957634000,18.73865807,103.12,103.07,4.14113662]
[1769957634401,9.04083057,103.11,103.07,4.14113662]
[1769957634601,9.04083057,103.1,103.07,4.14113662]
[1769957634807,18.7406036,103.1,103.07,4.14113662]
[1769957634997,4.16136278,103.12,103.07,13.84327992]
[1769957635206,9.04083057,103.12,103.08,4.14113662]
[1769957635507,18.73854756,103.12,103.08,4.14113662]
[1769957635709,9.69771699,103.12,103.08,4.14113662]
[1769957635904,18.73854756,103.12,103.08,4.14113662]
[1769957636302,4.16136278,103.11,103.07,9.7021433]
[1769957636508,42.98214724,103.12,103.06,9.70307426]
[1769957636509,9.04083057,103.09,103.06,9.70307426]
[1769957636690,4.11974915,103.1,103.06,13.84421088]
[1769957636691,9.04083057,103.1,103.06,13.84421088]
[1769957636891,18.74007559,103.11,103.06,13.84421088]
[1769957637199,9.04083057,103.11,103.06,38.10192483]
[1769957637508,22.85852043,103.12,103.07,4.14113662]
[1769957638396,47.10212011,103.12,103.07,4.14113662]
[1769957639206,47.10212011,103.12,103.07,13.84269431]
[1769957639913,18.73877128,103.12,103.08,4.14113662]
[1769957640301,28.3546562,103.16,103.09,4.14113662]
[1769957640506,9.04083057,103.15,103.1,13.18196719]
[1769957640705,9.04083057,103.14,103.1,4.14113662]
[1769957640896,9.04083057,103.13,103.08,4.14113662]
[1769957641102,9.04083057,103.13,103.09,4.14113662]
[1769957641314,18.73802766,103.13,103.09,4.14113662]
[1769957641618,9.04083057,103.12,103.07,13.84285932]
[1769957641914,9.04083057,103.12,103.07,13.84314861]
[1769957642114,9.04083057,103.12,103.08,9.70114395]
[1769957642317,9.04083057,103.12,103.07,13.8426076]
[1769957642513,9.04083057,103.12,103.08,9.70111482]
[1769957642717,9.04083057,103.12,103.07,28.39555574]
[1769957642921,13.16057972,103.1,103.05,4.14113662]
[1769957643219,9.04083057,103.11,103.07,9.70204761]
[1769957643416,9.69932104,103.1,103.06,13.84382886]
[1769957643615,9.04083057,103.08,103.04,4.14113662]
[1769957644226,9.04083057,103.09,103.04,13.84567884]
[1769957644539,9.04083057,103.07,103.04,4.14113662]
[1769957645002,13.16057972,103.08,103.03,9.70565649]
[1769957645333,13.16057972,103.06,103.01,9.70731643]
[1769957645624,9.70476947,103.05,103.0,13.18196719]
[1769957645799,9.70476947,103.05,103.0,47.16205946]
[1769957646199,18.74560004,103.05,103.0,13.84938423]
[1769957647020,22.86396091,103.06,103.01,9.04083057]
[1769957647226,22.86396091,103.06,103.0,47.16205946]
[1769957647604,22.86396091,103.06,103.01,4.08902718]
[1769957648306,9.70260274,103.07,103.03,4.08902718]
[1769957648519,13.82132157,103.08,103.03,13.12985775]
[1769957648703,13.82098223,103.08,103.03,13.12985775]
[1769957649210,18.74033531,103.1,103.05,13.12985775]
[1769957649409,9.69950474,103.1,103.05,13.12985775]
[1769957649619,9.69881998,103.11,103.07,4.08902718]
[1769957649921,33.28525985,103.12,103.07,4.08902718]
[1769957649922,18.73875167,103.12,103.07,4.08902718]
[1769957650303,18.73875167,103.12,103.07,13.79030399]
[1769957650704,9.6979211,103.12,103.07,22.83113456]
[1769957651118,22.85764248,103.13,103.08,4.08902718]
[1769957651327,9.69706276,103.13,103.08,4.08902718]
[1769957651513,9.04083057,103.12,103.08,4.08902718]
[1769957652229,13.16057972,103.12,103.06,13.12985775]
[1769957652531,9.69838037,103.11,103.07,9.70213637]
[1769957652725,22.85841594,103.12,103.07,13.79116355]
[1769957653122,47.10201562,103.12,103.06,18.74342891]
[1769957653327,9.04083057,103.11,103.06,13.79162552]
[1769957653729,47.10201562,103.12,103.06,22.83245609]
[1769957653929,22.85841594,103.12,103.07,4.08902718]
[1769957654434,13.16057972,103.11,103.06,13.79162552]
[1769957654734,13.81869517,103.11,103.06,22.83245609]
[1769957654935,9.69894602,103.11,103.07,4.08902718]
[1769957655428,4.11974915,103.09,103.05,9.70350559]
[1769957655635,4.11974915,103.09,103.04,4.08902718]
[1769957655636,9.04083057,103.08,103.04,4.08902718]
[1769957655840,13.16057972,103.09,103.04,13.79328351]
[1769957656014,13.16057972,103.09,103.04,4.08902718]
[1769957656215,9.04083057,103.08,103.04,4.08902718]
[1769957656411,9.04083057,103.08,103.04,13.79314829]
[1769957656750,22.8614328,103.09,103.04,13.79314829]
[1769957656924,18.74054117,103.1,103.05,4.08902718]
[1769957657129,18.74054117,103.1,103.02,13.79518037]
[1769957657130,13.16057972,103.07,103.02,13.79518037]
[1769957657632,38.22328406,103.1,102.97,36.0783323]
[1769957657633,9.04083057,103.05,103.0,13.79744809]
[1769957657835,13.16057972,103.05,103.01,9.70772707]
[1769957658619,13.16057972,103.05,103.0,4.08902718]
[1769957658620,18.74579951,103.04,103.0,4.08902718]
[1769957658928,22.86554866,103.04,102.99,9.70919309]
[1769957659128,47.12797102,103.04,102.98,13.12985775]
[1769957659328,9.04083057,103.03,102.99,9.7095857]
[1769957659525,9.04083057,103.03,102.99,13.79861288]
[1769957660143,47.12797102,103.04,102.99,13.79861288]
[1769957660332,9.70496894,103.04,103.0,4.08902718]
[1769957660638,22.86481099,103.05,103.0,13.79752912]
[1769957660840,9.04083057,103.05,103.01,4.08902718]
[1769957661015,9.04083057,103.04,103.0,9.70850194]
[1769957661519,13.16057972,103.04,103.0,9.70871738]
[1769957662222,9.04083057,103.05,103.01,4.08902718]
[1769957662523,18.74391615,103.06,103.01,4.08902718]
[1769957662716,4.11974915,103.01,102.91,4.08902718]
[1769957662919,9.04083057,102.97,102.93,4.08902718]
[1769957663535,9.04083057,102.97,102.93,13.80386786]
[1769957663920,9.04083057,102.96,102.93,4.08902718]